[Event "WYCC 2018 O14"]
[Site "Halkidiki"]
[Date "2018.10.20"]
[Round "1"]
[White "Beukema, Constantijn"]
[Black "Boyer, Mahel"]
[Result "0-1"]
[ECO "C09"]
[WhiteElo "1820"]
[BlackElo "2227"]
[Annotator "NA"]
[PlyCount "106"]
[EventDate "2018.10.20"]
[EventType "swiss"]
[EventCountry "GRE"]
[SourceTitle "playchess.com"]
[Source "ChessBase"]
[SourceQuality "1"]
[TimeControl "40/5400+30:1800+30"]

1. e4 {[%emt 0:00:00]} e6 {[%emt 0:00:00]} 2. d4 {[%emt 0:00:03]} d5 {[%emt 0:00:00]} 3. Nd2 {[%emt 0:00:26]} c5 {[%emt 0:00:00]} 4. exd5 {[%emt 0:00:23]} exd5 {[%emt 0:00:00]} 5. Ngf3 {[%emt 0:00:28]} Nc6 {[%emt 0:00:00]} 6. Bb5 {[%emt 0:00:33]} Qe7+ {[%emt 0:00:00]} 7. Be2 {[%emt 0:00:19]} Qc7 {[%emt 0:00:00] C09: French Tarrasch: 3...c5 4 exd5 exd5 5 Ngf3 Nc6} 8. O-O {[%emt 0:00:43]} Nf6 {[%emt 0:00:00]} 9. Re1 {[%emt 0:00:50]} Be6 {[%emt 0:07:53]} 10. dxc5 {[%emt 0:06:18]} Bxc5 {[%emt 0:00:09]} 11. Nb3 {[%emt 0:00:11]} Bb6 {[%emt 0:00:59]} 12. c4 {[%emt 0:00:41]} dxc4 {[%emt 0:01:29]} 13. Bxc4 {[%emt 0:00:09]} O-O {[%emt 0:00:10]} 14. Bxe6 {[%emt 0:01:18]} fxe6 {[%emt 0:02:36] [#]} 15. Be3 $146 {[%emt 0:01:12]} e5 {[%emt 0:11:55]} 16. Qe2 {[%emt 0:02:11]} Rae8 {[%emt 0:10:50]} 17. Rad1 {[%emt 0:07:49]} Bxe3 {[%emt 0:24:53]} 18. Qxe3 {[%emt 0:00:23]} e4 {[%emt 0:02:11]} 19. Nfd4 {[%emt 0:00:46]} Ne5 {[%emt 0:05:28]} 20. Rc1 {[%emt 0:00:41]} Qb8 {[%emt 0:00:51]} 21. h3 {[%emt 0:03:53]} Nd3 {[%emt 0:01:06]} 22. Nc5 {[%emt 0:01:50]} Nxe1 {[%emt 0:00:39]} 23. Rxe1 {[%emt 0:00:34]} Qe5 {[%emt 0:04:16]} 24. Qb3+ {[%emt 0:01:05]} Qd5 {[%emt 0:00:04]} 25. Qxd5+ {[%emt 0:01:41]} Nxd5 {[%emt 0:00:01]} 26. Nce6 {[%emt 0:00:30]} Rf6 {[%emt 0:01:08]} 27. Rxe4 {[%emt 0:00:13]} Nc7 {[%emt 0:01:17]} 28. Nc5 {[%emt 0:03:05]} Rxe4 {[%emt 0:00:11]} 29. Nxe4 {[%emt 0:00:06]} Rb6 {[%emt 0:00:10]} 30. Nb3 {[%emt 0:01:10]} Nd5 {[%emt 0:00:53]} 31. f3 {[%emt 0:01:24]} Nb4 {[%emt 0:00:59]} 32. Nc1 {[%emt 0:01:31]} Rc6 {[%emt 0:01:54]} 33. Nc3 {[%emt 0:00:26]} Nd5 {[%emt 0:00:14]} 34. N1e2 {[%emt 0:00:42]} Nxc3 {[%emt 0:00:02]} 35. Nxc3 {[%emt 0:00:09]} Rb6 {[%emt 0:00:39]} 36. b3 {[%emt 0:00:10]} Rc6 {[%emt 0:00:05]} 37. Nb5 {[%emt 0:00:27]} Rc2 $19 {[%emt 0:00:51]} 38. a4 {[%emt 0:01:07]} Rb2 {[%emt 0:03:07]} 39. Nd4 {[%emt 0:00:15]} Rd2 {[%emt 0:00:16]} 40. Ne6 {[%emt 0:00:00]} b6 {[%emt 0:00:00]} 41. Nc7 {[%emt 0:00:43]} Rd3 {[%emt 0:00:52]} 42. b4 {[%emt 0:01:26]} Ra3 {[%emt 0:00:13]} 43. Kf2 {[%emt 0:00:24]} Rxa4 {[%emt 0:00:01]} 44. b5 {[%emt 0:00:16]} Rc4 {[%emt 0:00:16]} 45. Na6 {[%emt 0:00:07]} Rc2+ {[%emt 0:00:09]} 46. Kg3 {[%emt 0:00:08]} Rd2 {[%emt 0:00:18]} 47. Nb8 {[%emt 0:00:35]} Rb2 {[%emt 0:00:27]} 48. Nc6 {[%emt 0:00:07]} Rxb5 {[%emt 0:00:03]} 49. Nxa7 {[%emt 0:00:06]} Rc5 {[%emt 0:00:03]} 50. Kf4 {[%emt 0:00:14]} Kf7 {[%emt 0:00:04]} 51. Ke4 {[%emt 0:00:17]} Ke6 {[%emt 0:00:06]} 52. f4 {[%emt 0:01:01]} Kd7 {[%emt 0:00:26]} 53. g4 {[%emt 0:00:44]} Ra5 {[%emt 0:00:16]} 0-1

[Event "WYCC 2018 O14"]
[Site "Halkidiki"]
[Date "2018.10.20"]
[Round "1"]
[White "Radojicic, Aleksandar M"]
[Black "Turcan, Richard"]
[Result "1/2-1/2"]
[ECO "A49"]
[WhiteElo "1814"]
[BlackElo "2218"]
[Annotator "NA"]
[PlyCount "73"]
[EventDate "2018.10.20"]
[EventType "swiss"]
[EventCountry "GRE"]
[SourceTitle "playchess.com"]
[Source "ChessBase"]
[SourceQuality "1"]
[TimeControl "40/5400+30:1800+30"]

1. d4 {[%emt 0:00:00]} Nf6 {[%emt 0:00:00]} 2. Nf3 {[%emt 0:00:17]} g6 {[%emt 0:01:04]} 3. g3 {[%emt 0:00:43]} Bg7 {[%emt 0:00:17]} 4. Bg2 {[%emt 0:00:10]} O-O {[%emt 0:00:45]} 5. O-O {[%emt 0:01:08]} d5 {[%emt 0:05:45]} 6. c3 {[%emt 0:03:04]} b6 {[%emt 0:09:29]} 7. Bf4 {[%emt 0:09:57]} Bb7 {[%emt 0:02:11]} 8. Qc1 {[%emt 0:05:34]} Nbd7 {[%emt 0:12:05]} 9. Bh6 {[%emt 0:02:45]} c5 {[%emt 0:01:09]} 10. Bxg7 {[%emt 0:05:34]} Kxg7 {[%emt 0:00:02]} 11. Qf4 $11 {[%emt 0:13:18]} Rc8 {[%emt 0:06:36]} 12. Nbd2 {[%emt 0:05:59]} Qc7 {[%emt 0:07:55]} 13. Qxc7 {[%emt 0:19:10]} Rxc7 {[%emt 0:00:04]} 14. e3 {[%emt 0:00:45]} e6 {[%emt 0:03:38]} 15. Rfe1 {[%emt 0:04:31]} Rfc8 {[%emt 0:03:44]} 16. Bf1 {[%emt 0:02:12]} Kf8 {[%emt 0:12:16]} 17. Bd3 {[%emt 0:01:58]} Nb8 {[%emt 0:04:54]} 18. Ne5 {[%emt 0:04:02]} Ba6 {[%emt 0:01:49]} 19. Bxa6 {[%emt 0:01:11]} Nxa6 {[%emt 0:00:02]} 20. a4 {[%emt 0:03:04]} Nd7 {[%emt 0:03:42]} 21. Nxd7+ {[%emt 0:02:21]} Rxd7 {[%emt 0:00:03]} 22. f4 {[%emt 0:01:40]} Nb8 {[%emt 0:02:29]} 23. Kf2 {[%emt 0:01:21]} Nc6 {[%emt 0:01:40]} 24. g4 {[%emt 0:01:43]} Rb7 {[%emt 0:01:35]} 25. Rec1 {[%emt 0:02:17]} c4 {[%emt 0:01:30]} 26. Ra2 {[%emt 0:01:38]} Rcb8 {[%emt 0:02:36]} 27. Rc2 {[%emt 0:01:50]} b5 {[%emt 0:00:39]} 28. axb5 {[%emt 0:00:11]} Rxb5 {[%emt 0:00:17]} 29. Nf3 {[%emt 0:00:58]} Ke7 {[%emt 0:01:08]} 30. Ne5 {[%emt 0:00:41]} Nxe5 {[%emt 0:00:07]} 31. fxe5 {[%emt 0:00:26]} R8b7 {[%emt 0:02:38]} 32. g5 {[%emt 0:00:49]} Kd7 {[%emt 0:02:50]} 33. Kf3 {[%emt 0:01:41]} Kc6 {[%emt 0:04:45]} 34. Ra6+ {[%emt 0:00:12]} Kc7 {[%emt 0:00:39]} 35. Ra2 {[%emt 0:00:06]} Kb6 {[%emt 0:00:19]} 36. Rc1 {[%emt 0:01:20]} Kc7 {[%emt 0:01:34]} 37. Rc2 {[%emt 0:00:05]} 1/2-1/2

[Event "WYCC 2018 O14"]
[Site "Halkidiki"]
[Date "2018.10.20"]
[Round "1"]
[White "Vujovic, Savo"]
[Black "Van Dael, Siem"]
[Result "0-1"]
[ECO "B53"]
[WhiteElo "1781"]
[BlackElo "2202"]
[Annotator "NA"]
[PlyCount "104"]
[EventDate "2018.10.20"]
[EventType "swiss"]
[EventCountry "GRE"]
[SourceTitle "playchess.com"]
[Source "ChessBase"]
[SourceQuality "1"]
[TimeControl "40/5400+30:1800+30"]

1. e4 c5 2. Nf3 {[%emt 0:00:11]} d6 {[%emt 0:00:07]} 3. d4 {[%emt 0:00:04]} cxd4 {[%emt 0:00:04]} 4. Qxd4 {[%emt 0:00:07]} Nc6 {[%emt 0:00:05]} 5. Bb5 {[%emt 0:00:05]} Bd7 {[%emt 0:00:17]} 6. Bxc6 {[%emt 0:00:15]} Bxc6 {[%emt 0:00:27]} 7. Nc3 {[%emt 0:00:26]} Nf6 {[%emt 0:04:44]} 8. Bg5 {[%emt 0:00:53]} e6 {[%emt 0:00:33]} 9. O-O-O {[%emt 0:00:32]} Be7 {[%emt 0:01:10]} 10. Kb1 {[%emt 0:00:32]} O-O {[%emt 0:03:09]} 11. Rhe1 {[%emt 0:01:49]} Qa5 {[%emt 0:11:25]} 12. Qd2 {[%emt 0:01:30]} Qb6 {[%emt 0:07:18]} 13. Nd4 {[%emt 0:00:27] B53: Sicilian: 2...d6: Lines with Qxd4} Rac8 {[%emt 0:10:04]} 14. f3 {[%emt 0:04:39]} Bd7 {[%emt 0:06:57]} 15. Nb3 {[%emt 0:08:18]} Bc6 {[%emt 0:09:22]} 16. Nd4 {[%emt 0:02:12]} Rfd8 {[%emt 0:03:18]} 17. g4 {[%emt 0:01:00]} Be8 {[%emt 0:05:25]} 18. Nd5 {[%emt 0:01:39] [#]} exd5 $146 {[%emt 0:12:08]} ({Predecessor:} 18... Nxd5 19. exd5 Bxg5 20. Qxg5 Qc5 21. Qc1 e5 22. Nf5 Rd7 {½-½ (31) Cao,S (2548)-Acs,P (2522) Hungary 2007}) 19. Nf5 {[%emt 0:00:05]} Qc7 {[%emt 0:06:39]} 20. Bh6 {[%emt 0:00:55]} Bf8 {[%emt 0:07:19]} 21. Bxg7 {[%emt 0:00:11]} Bxg7 {[%emt 0:00:13]} 22. Qg5 {[%emt 0:00:06]} Nh5 {[%emt 0:00:06]} 23. c3 {[%emt 0:01:22]} f6 {[%emt 0:03:06]} 24. Qd2 {[%emt 0:00:11]} Bg6 {[%emt 0:04:09]} 25. Qxd5+ $19 {[%emt 0:01:55]} (25. gxh5 {might work better.} Bxh5 26. Rg1) 25... Bf7 {[%emt 0:02:14]} 26. Qd2 {[%emt 0:00:15]} d5 {[%emt 0:01:14]} 27. gxh5 {[%emt 0:00:50]} dxe4 {[%emt 0:00:14]} 28. Qg2 {[%emt 0:00:14]} Bxa2+ {[%emt 0:01:02]} 29. Kxa2 {[%emt 0:04:20]} Qa5+ {[%emt 0:00:05]} 30. Kb3 {[%emt 0:00:15]} Qb5+ {[%emt 0:00:47]} 31. Ka3 {[%emt 0:00:28]} Qa5+ {[%emt 0:01:05]} 32. Kb3 {[%emt 0:00:07]} Qb5+ {[%emt 0:00:30]} 33. Ka3 {[%emt 0:00:04]} Qc5+ {[%emt 0:00:04]} 34. Kb3 {[%emt 0:00:51]} Qc4+ {[%emt 0:00:55]} 35. Ka3 {[%emt 0:00:10]} Qa6+ {[%emt 0:00:07]} 36. Kb3 {[%emt 0:00:06]} Qc4+ {[%emt 0:00:25]} 37. Ka3 {[%emt 0:00:04]} Qa6+ {[%emt 0:00:04]} 38. Kb3 {[%emt 0:00:03]} Qe6+ {[%emt 0:00:03]} 39. Ka3 {[%emt 0:00:13]} Qxf5 {[%emt 0:00:25]} 40. h6 {[%emt 0:00:12]} Qa5+ {[%emt 0:01:26]} 41. Kb3 {[%emt 0:00:04]} Qb5+ {[%emt 0:00:10]} 42. Ka3 {[%emt 0:00:44]} Qg5 {[%emt 0:01:59]} 43. Qxg5 {[%emt 0:01:45]} fxg5 {[%emt 0:00:05]} 44. hxg7 {[%emt 0:00:29]} exf3 {[%emt 0:00:07]} 45. Ra1 {[%emt 0:01:26]} Rc7 {[%emt 0:01:07]} 46. Rf1 {[%emt 0:01:06]} Rf7 {[%emt 0:00:10]} 47. Kb3 {[%emt 0:00:05]} b6 {[%emt 0:00:15]} 48. Ra4 {[%emt 0:01:00]} Kxg7 {[%emt 0:00:29]} 49. Rg4 {[%emt 0:00:55]} Kg6 {[%emt 0:00:14]} 50. h4 {[%emt 0:00:17]} h6 {[%emt 0:00:06]} 51. hxg5 {[%emt 0:00:06]} hxg5 {[%emt 0:00:04]} 52. Rg3 {[%emt 0:00:32]} Rdf8 {[%emt 0:00:59]} 0-1

[Event "WYCC 2018 O14"]
[Site "Halkidiki"]
[Date "2018.10.21"]
[Round "2"]
[White "Krastev, Alexander"]
[Black "Stremavicius, Pijus"]
[Result "0-1"]
[ECO "B09"]
[WhiteElo "2298"]
[BlackElo "2024"]
[Annotator "NA"]
[PlyCount "64"]
[EventDate "2018.10.20"]
[EventType "swiss"]
[EventCountry "GRE"]
[SourceTitle "playchess.com"]
[Source "ChessBase"]
[SourceQuality "1"]
[TimeControl "40/5400+30:1800+30"]

1. e4 {[%emt 0:00:00]} d6 {[%emt 0:00:00]} 2. d4 {[%emt 0:00:00]} Nf6 {[%emt 0:00:00]} 3. Nc3 {[%emt 0:00:16]} g6 {[%emt 0:00:00]} 4. f4 {[%emt 0:01:09]} Bg7 {[%emt 0:00:03]} 5. Nf3 {[%emt 0:00:31]} c5 {[%emt 0:00:29]} 6. dxc5 {[%emt 0:21:39]} Qa5 {[%emt 0:00:09]} 7. Bd3 {[%emt 0:00:22]} Qxc5 {[%emt 0:00:05]} 8. Qe2 {[%emt 0:00:41]} O-O {[%emt 0:03:24]} 9. Be3 {[%emt 0:04:50]} Qa5 {[%emt 0:00:39]} 10. O-O {[%emt 0:04:04]} Bg4 {[%emt 0:00:07]} 11. h3 {[%emt 0:01:29] LiveBook: 92 Games} Bxf3 $1 {[%emt 0:00:05]} 12. Qxf3 {[%emt 0:00:17]} Nc6 {[%emt 0:00:09]} 13. Ne2 {[%emt 0:09:17]} Nb4 {[%emt 0:11:30] B09: Pirc Defence: Austrian Attack} 14. Nd4 $146 {[%emt 0:07:45]} ({Predecessor:} 14. Bd4 Nd7 15. c3 Nxd3 16. Qxd3 Bxd4+ 17. cxd4 Rac8 18. f5 Qb6 19. b3 d5 20. exd5 Nf6 21. fxg6 hxg6 {½-½ (41) Zdebskaja,N (2410)-Wang,X (2223) Ningbo 2009}) 14... Nd7 {[%emt 0:04:36]} 15. Rfc1 {[%emt 0:09:39]} Nxd3 {[%emt 0:02:41]} 16. cxd3 {[%emt 0:00:07]} Qb4 {[%emt 0:02:49]} 17. Qf2 {[%emt 0:01:36]} Rac8 {[%emt 0:03:18]} 18. a3 {[%emt 0:06:13]} Qa4 {[%emt 0:01:40]} 19. Rc4 {[%emt 0:04:02]} Rxc4 {[%emt 0:01:15]} 20. b3 {[%emt 0:00:47] [#]} Rc1+ $1 {[%emt 0:00:44]} 21. Rxc1 {[%emt 0:00:41]} Qxa3 {[%emt 0:00:22]} 22. Rc7 {[%emt 0:13:51]} Nc5 {[%emt 0:00:05]} 23. Rxe7 {[%emt 0:00:56]} Nxd3 {[%emt 0:01:10]} (23... Bf6 $19 {and Black stays clearly on top.} 24. Rc7 Qa5 25. Rxc5 dxc5) 24. Qf1 {[%emt 0:01:23]} Nc5 {[%emt 0:05:59]} 25. Qc4 {[%emt 0:01:49]} Bf6 {[%emt 0:11:23]} 26. Nc2 {[%emt 0:05:01]} Qb2 {[%emt 0:01:30]} 27. Rc7 {[%emt 0:00:52]} b5 {[%emt 0:01:00]} 28. Qe2 {[%emt 0:02:06]} Nxe4 {[%emt 0:01:55]} 29. Qxb5 {[%emt 0:00:51]} Nc3 {[%emt 0:12:09]} 30. Qd3 {[%emt 0:00:37]} Qxb3 {[%emt 0:00:13]} 31. Kh2 $17 {[%emt 0:01:59]} Qb2 {[%emt 0:04:59]} 32. Qxd6 {[%emt 0:00:35]} Nb5 0-1

[Event "WYCC 2018 O14"]
[Site "Halkidiki"]
[Date "2018.10.21"]
[Round "2"]
[White "Ozenir, Ekin Baris"]
[Black "Gavriil, Odysseas-Panagiotis"]
[Result "1-0"]
[ECO "A45"]
[WhiteElo "2293"]
[BlackElo "2009"]
[Annotator "ChessBase"]
[PlyCount "109"]
[EventDate "2018.10.20"]
[EventType "swiss"]
[EventCountry "GRE"]
[SourceTitle "playchess.com"]
[Source "ChessBase"]
[SourceQuality "1"]
[TimeControl "40/5400+30:1800+30"]

1. d4 {[%emt 0:00:00]} Nf6 {[%emt 0:00:00]} 2. Bg5 {[%emt 0:00:11]} d5 {[%emt 0:00:00]} 3. e3 {[%emt 0:01:15]} c6 {[%emt 0:00:40]} 4. Bxf6 {[%emt 0:01:13]} exf6 {[%emt 0:00:33]} 5. Nd2 {[%emt 0:01:58]} Bd6 {[%emt 0:03:06]} 6. g3 {[%emt 0:02:26]} Be6 {[%emt 0:00:58]} 7. Bg2 {[%emt 0:01:25]} f5 {[%emt 0:01:15]} 8. Ne2 {[%emt 0:03:35]} Nd7 {[%emt 0:01:05]} 9. O-O {[%emt 0:05:04]} O-O {[%emt 0:00:12]} 10. Rc1 {[%emt 0:03:34]} Nf6 {[%emt 0:04:01]} 11. c4 {[%emt 0:03:56]} Ne4 {[%emt 0:04:26]} 12. Nxe4 {[%emt 0:08:27]} fxe4 {[%emt 0:00:26]} 13. cxd5 {[%emt 0:00:47]} Bxd5 {[%emt 0:07:14]} 14. Nc3 {[%emt 0:03:09]} Bb4 {[%emt 0:27:17]} 15. Nxe4 {[%emt 0:08:03]} Re8 {[%emt 0:06:01]} 16. Nc5 {[%emt 0:02:50]} Bxc5 {[%emt 0:01:19]} 17. Rxc5 {[%emt 0:02:06]} Bxg2 {[%emt 0:09:59]} 18. Kxg2 {[%emt 0:00:19]} Qd6 {[%emt 0:00:15]} 19. Qf3 {[%emt 0:04:14]} Re6 {[%emt 0:01:28]} 20. Rfc1 {[%emt 0:06:19]} Rf6 {[%emt 0:04:02]} 21. Qe4 {[%emt 0:02:35]} Re6 {[%emt 0:02:55]} 22. Qf5 {[%emt 0:02:24]} g6 {[%emt 0:00:27]} 23. Qg5 {[%emt 0:01:05]} Kg7 {[%emt 0:02:45]} 24. Qf4 {[%emt 0:06:34]} Qxf4 {[%emt 0:02:17]} 25. gxf4 {[%emt 0:00:07]} Rd8 {[%emt 0:00:32]} 26. b4 {[%emt 0:03:22]} a6 {[%emt 0:03:23]} 27. Re5 {[%emt 0:03:05]} Rdd6 {[%emt 0:03:56]} 28. Kf3 {[%emt 0:03:21]} Rxe5 {[%emt 0:05:03]} 29. fxe5 {[%emt 0:00:07]} Rd7 {[%emt 0:00:12]} 30. Ke4 {[%emt 0:00:52]} f6 {[%emt 0:00:35]} 31. exf6+ {[%emt 0:04:14]} Kxf6 {[%emt 0:00:05]} 32. Rc5 {[%emt 0:00:10]} Rd6 {[%emt 0:02:12]} 33. f4 {[%emt 0:01:23]} Ke6 {[%emt 0:02:30]} 34. Re5+ {[%emt 0:01:19]} Kf6 {[%emt 0:01:05]} 35. a4 {[%emt 0:00:24]} h6 {[%emt 0:00:59]} 36. h4 {[%emt 0:00:42]} Kf7 {[%emt 0:01:00]} 37. a5 {[%emt 0:00:46]} Kf6 {[%emt 0:00:46]} 38. Kd3 {[%emt 0:01:12]} Rd8 {[%emt 0:03:04]} 39. Kc4 {[%emt 0:00:09]} Rd7 {[%emt 0:00:34]} 40. Kc5 {[%emt 0:00:00]} Kf7 {[%emt 0:00:00]} 41. e4 {[%emt 0:05:50]} Rd8 {[%emt 0:01:07]} 42. h5 {[%emt 0:03:42]} gxh5 {[%emt 0:00:06]} 43. Rxh5 {[%emt 0:00:15]} Kg6 {[%emt 0:00:37]} 44. Rh1 {[%emt 0:00:57]} Re8 {[%emt 0:02:47]} 45. f5+ {[%emt 0:00:56]} Kg5 {[%emt 0:00:52]} 46. Rg1+ {[%emt 0:01:15]} Kf6 {[%emt 0:01:47]} 47. Rg6+ {[%emt 0:00:10]} Kf7 {[%emt 0:00:07]} 48. Rxh6 {[%emt 0:01:07]} Rxe4 {[%emt 0:00:07]} 49. Rh7+ {[%emt 0:00:06]} Kf6 {[%emt 0:00:21]} 50. Rxb7 {[%emt 0:00:06]} Kxf5 {[%emt 0:00:08]} 51. Rb6 {[%emt 0:00:50]} Re1 {[%emt 0:00:17]} 52. Rxa6 {[%emt 0:00:27]} Rc1+ {[%emt 0:00:16]} 53. Kd6 {[%emt 0:00:25]} Rc4 {[%emt 0:00:05]} 54. Rb6 {[%emt 0:00:10]} Kf6 {[%emt 0:00:44]} 55. Rxc6 {[%emt 0:00:11]} 1-0

[Event "WYCC 2018 O14"]
[Site "Halkidiki"]
[Date "2018.10.21"]
[Round "2"]
[White "Trifan, Andrei Ioan"]
[Black "Boulos, Carlos"]
[Result "0-1"]
[ECO "C63"]
[WhiteElo "2290"]
[BlackElo "2003"]
[Annotator "NA"]
[PlyCount "92"]
[EventDate "2018.10.20"]
[EventType "swiss"]
[EventCountry "GRE"]
[SourceTitle "playchess.com"]
[Source "ChessBase"]
[SourceQuality "1"]
[TimeControl "40/5400+30:1800+30"]

1. e4 {[%emt 0:00:00]} e5 {[%emt 0:00:00]} 2. Nf3 {[%emt 0:00:00]} Nc6 {[%emt 0:00:14]} 3. Bb5 {[%emt 0:00:15]} f5 {[%emt 0:00:50]} 4. d4 {[%emt 0:07:02]} fxe4 {[%emt 0:00:46]} 5. Bxc6 {[%emt 0:06:29]} dxc6 {[%emt 0:08:07]} 6. Nxe5 {[%emt 0:00:21]} Nf6 {[%emt 0:00:50]} 7. O-O {[%emt 0:02:10] C63: Ruy Lopez: Schliemann/Jaenisch Defence} (7. Nc3 Bb4 8. O-O O-O 9. Bg5 Qe8 10. Qe2 Bxc3 11. bxc3 h6 12. Bxf6 gxf6 13. Nc4 Qg6 14. Rae1 Bf5 {1-0 (24) Short,N (2664)-Schebler,G (2451) Pattaya 2015}) 7... Bd6 {[%emt 0:03:15]} 8. Nc3 {[%emt 0:04:55]} O-O {[%emt 0:15:47]} 9. Bg5 {[%emt 0:09:19]} Bxe5 {[%emt 0:07:41]} 10. dxe5 {[%emt 0:00:15]} Qxd1 {[%emt 0:00:12]} 11. Raxd1 {[%emt 0:03:37]} Ng4 {[%emt 0:01:24]} 12. Nxe4 {[%emt 0:04:33]} Nxe5 {[%emt 0:00:33]} 13. Rfe1 {[%emt 0:01:49]} Bf5 $146 {[%emt 0:12:07]} ({Predecessor:} 13... Ng6 14. c3 {1-0 (58) Chegwing,A (2061)-Manrique,F (1987) Bogota 2014}) 14. Ng3 {[%emt 0:08:10]} Rae8 {[%emt 0:26:36]} 15. Nxf5 {[%emt 0:14:44]} Rxf5 {[%emt 0:00:13]} 16. Bd8 {[%emt 0:02:31]} Rf7 {[%emt 0:09:25]} 17. Re3 {[%emt 0:06:16]} Kf8 $1 {[%emt 0:07:08]} 18. Bh4 {[%emt 0:02:21]} Nd7 {[%emt 0:02:14]} 19. Bg3 {[%emt 0:05:51]} Rxe3 {[%emt 0:01:22]} 20. fxe3 {[%emt 0:00:02]} Nf6 {[%emt 0:00:25]} 21. Rd8+ {[%emt 0:02:32]} Ke7 {[%emt 0:00:30]} 22. Rb8 {[%emt 0:02:00]} b6 {[%emt 0:00:42]} 23. Rb7 {[%emt 0:03:34]} Kd8 {[%emt 0:00:11]} 24. Rxa7 {[%emt 0:00:28]} Ne4 {[%emt 0:00:33]} 25. Ra8+ {[%emt 0:03:34]} Kd7 {[%emt 0:00:48]} 26. Bxc7 {[%emt 0:00:30]} Rf2 {[%emt 0:00:33]} 27. Bxb6 {[%emt 0:00:21]} Rxc2 {[%emt 0:00:18]} 28. h4 {[%emt 0:00:47]} Rxb2 {[%emt 0:00:36]} 29. Bd4 {[%emt 0:01:08]} Rb1+ {[%emt 0:00:17]} 30. Kh2 {[%emt 0:00:02]} g6 {[%emt 0:00:47]} 31. Ra7+ {[%emt 0:02:21]} Ke6 {[%emt 0:00:12]} 32. Rc7 {[%emt 0:02:23]} Kd6 {[%emt 0:00:50]} 33. Rxh7 {[%emt 0:00:34]} c5 {[%emt 0:00:26]} 34. Bh8 {[%emt 0:00:33]} c4 {[%emt 0:00:36]} 35. Rh6 {[%emt 0:01:04]} c3 {[%emt 0:00:25]} 36. Rxg6+ {[%emt 0:00:12]} Kd5 {[%emt 0:00:08]} 37. Bxc3 $1 {[%emt 0:01:12]} Nxc3 {[%emt 0:00:09]} 38. h5 {[%emt 0:00:29]} Nxa2 {[%emt 0:00:43]} 39. h6 {[%emt 0:02:51]} Rb8 {[%emt 0:00:16]} 40. g4 {[%emt 0:00:00]} Ke5 {[%emt 0:00:00]} 41. g5 {[%emt 0:07:27]} Kf5 {[%emt 0:22:13]} 42. Rg7 {[%emt 0:02:20]} Kg4 {[%emt 0:02:57]} 43. Kg2 {[%emt 0:06:19]} Nc3 {[%emt 0:02:39]} 44. h7 $2 {[%emt 0:09:14]} (44. Rf7 $15) 44... Rb2+ {[%emt 0:01:01]} 45. Kf1 {[%emt 0:00:02]} Kg3 {[%emt 0:01:24]} 46. Ke1 {[%emt 0:00:20]} Kg2 {[%emt 0:02:13]} 0-1

[Event "WYCC 2018 O14"]
[Site "Halkidiki"]
[Date "2018.10.21"]
[Round "2"]
[White "Gines Esteo, Pedro Antonio"]
[Black "Nguyen, Huynh Minh Thien"]
[Result "1-0"]
[ECO "A48"]
[WhiteElo "2288"]
[BlackElo "1996"]
[Annotator "NA"]
[PlyCount "91"]
[EventDate "2018.10.20"]
[EventType "swiss"]
[EventCountry "GRE"]
[SourceTitle "playchess.com"]
[Source "ChessBase"]
[SourceQuality "1"]
[TimeControl "40/5400+30:1800+30"]

1. d4 {[%emt 0:00:00]} Nf6 {[%emt 0:00:00]} 2. Nf3 {[%emt 0:00:00]} g6 {[%emt 0:00:07]} 3. Nbd2 {[%emt 0:00:00]} d5 {[%emt 0:00:20]} 4. e3 {[%emt 0:00:00]} Bg7 {[%emt 0:00:08]} 5. b4 {[%emt 0:00:02]} O-O {[%emt 0:01:17]} 6. Bb2 {[%emt 0:00:28]} c6 {[%emt 0:01:59]} 7. c4 {[%emt 0:00:18]} a5 {[%emt 0:02:21]} 8. b5 {[%emt 0:00:07] A48: Königsindisch (ohne c2-c4)} a4 {[%emt 0:06:27]} (8... cxb5 9. cxb5 Bg4 10. Bd3 Nbd7 11. O-O Qb6 12. h3 {½-½ (12) Vallejo Pons,F (2677)-Wen,Y (2609) Moscow 2016}) 9. Ba3 {[%emt 0:00:28]} Bf5 {[%emt 0:01:29]} 10. bxc6 {[%emt 0:05:27]} bxc6 $146 {[%emt 0:00:53]} ({Vorgänger:} 10... Nxc6 11. Be2 dxc4 12. Bxc4 Qa5 13. Rc1 Rac8 14. O-O b5 15. Be2 Nd5 {½-½ (60) Westerberg,J (2504)-Martinovic,S (2567) Batumi 2018}) 11. Be2 {[%emt 0:01:51]} Re8 {[%emt 0:02:14]} 12. O-O {[%emt 0:03:00]} Nbd7 {[%emt 0:00:45]} 13. Nh4 {[%emt 0:05:17]} Be6 {[%emt 0:02:11]} 14. f4 {[%emt 0:11:51]} dxc4 {[%emt 0:10:35]} 15. Nxc4 {[%emt 0:06:29]} Bxc4 {[%emt 0:01:29]} 16. Bxc4 {[%emt 0:00:07] [#]} Nb6 $1 {[%emt 0:00:20]} 17. Qe2 {[%emt 0:16:48]} Nxc4 {[%emt 0:03:36]} 18. Qxc4 {[%emt 0:00:02]} Nd5 {[%emt 0:00:14]} 19. Rae1 {[%emt 0:02:43]} e5 {[%emt 0:01:07]} 20. fxe5 {[%emt 0:03:17]} Qxh4 {[%emt 0:02:16]} 21. e4 {[%emt 0:00:41]} Bxe5 {[%emt 0:20:54]} 22. dxe5 {[%emt 0:00:56]} Rxe5 {[%emt 0:00:12]} 23. Bb2 {[%emt 0:19:30]} Rh5 {[%emt 0:05:31]} 24. h3 {[%emt 0:00:08]} Nf4 {[%emt 0:17:52]} 25. Qc3 {[%emt 0:06:51]} f6 {[%emt 0:01:36]} 26. Rxf4 {[%emt 0:02:15]} Qxf4 {[%emt 0:00:32] [#]} 27. Rf1 $1 {[%emt 0:00:06]} Qd6 {[%emt 0:01:05]} 28. Qc4+ {[%emt 0:00:25]} Rd5 {[%emt 0:07:13]} 29. exd5 {[%emt 0:00:21]} Qxd5 {[%emt 0:01:35]} (29... cxd5 $142 30. Qg4 Qc5+ 31. Bd4 f5 32. Rxf5 Qc8) 30. Qxd5+ {[%emt 0:01:44]} cxd5 {[%emt 0:00:06]} 31. Rxf6 {[%emt 0:00:52]} Rc8 {[%emt 0:00:53]} 32. Kf1 {[%emt 0:01:20]} Rb8 {[%emt 0:01:04]} 33. Rf2 {[%emt 0:00:53]} Rb5 {[%emt 0:00:09]} 34. Ke1 {[%emt 0:00:11]} Rb7 {[%emt 0:01:01]} 35. Kd1 {[%emt 0:00:10]} Rc7 {[%emt 0:00:13]} 36. Rd2 {[%emt 0:00:33]} Rc5 {[%emt 0:00:08]} 37. Rd4 {[%emt 0:00:12]} Rb5 {[%emt 0:00:05]} 38. Kc2 {[%emt 0:00:09]} Ra5 {[%emt 0:00:17]} 39. Bc3 {[%emt 0:00:13]} Ra7 {[%emt 0:00:06]} 40. Rxd5 {[%emt 0:00:00]} Kf7 {[%emt 0:00:00]} 41. g4 {[%emt 0:00:48]} Ke6 {[%emt 0:00:27]} 42. Re5+ {[%emt 0:00:33]} Kd6 {[%emt 0:00:04]} 43. g5 {[%emt 0:00:24]} Rf7 {[%emt 0:00:09]} 44. Re4 {[%emt 0:01:39]} Rf2+ {[%emt 0:00:10]} 45. Bd2 $18 {[%emt 0:00:17]} Rh2 {[%emt 0:00:20]} 46. Rh4 {[%emt 0:00:10]} 1-0